bitfinex-derivatives/quotes_ETHF0:USTF0_20251117
["timestamp","ask_amount","ask_price","bid_price","bid_amount"]
[1763392616490,0.00479616,3131.1,3131.0,0.51787]
[1763392616882,0.00479616,3131.1,3130.8,3.2078]
[1763392617084,0.00479616,3131.1,3130.9,0.51787]
[1763392617287,0.00479616,3131.1,3130.8,3.2078]
[1763392617484,0.00479616,3131.1,3130.9,0.51788]
[1763392618485,0.00308155,3131.4,3131.3,0.51782]
[1763392618691,3.2078,3131.8,3130.8,3.2078]
[1763392619490,0.00479616,3131.6,3130.8,3.2078]
[1763392619695,0.00891918,3131.6,3130.8,3.2078]
[1763392619990,0.00891918,3131.6,3131.4,0.51779]
[1763392620188,3.2078,3132.2,3131.4,0.51779]
[1763392620384,0.7209,3135.0,3131.2,3.2078]
[1763392620385,3.2078,3132.6,3131.2,3.2078]
[1763392620589,3.2078,3132.2,3131.2,3.2078]
[1763392620787,3.2078,3131.4,3130.7,8.313]
[1763392620983,3.2078,3131.9,3131.3,0.51781]
[1763392621279,1.99973719,3134.9,3131.5,3.2078]
[1763392621280,2.6044129,3133.1,3131.5,3.2078]
[1763392621482,3.2078,3132.8,3131.3,0.00479616]
[1763392621683,3.2078,3132.3,3131.3,0.00479616]
[1763392621983,14.03744775,3134.0,3130.1,0.00274661]
[1763392621984,3.2078,3131.5,3130.1,0.00274661]
[1763392622187,3.2078,3130.4,3129.3,3.2078]
[1763392622490,0.51822,3128.9,3128.5,0.51827]
[1763392622791,3.2078,3129.0,3128.0,3.2078]
[1763392623091,0.51831,3128.4,3128.2,0.00479616]
[1763392623294,3.2078,3128.1,3126.7,3.2078]
[1763392623592,3.2078,3127.4,3126.7,0.00310901]
[1763392624088,0.51849,3127.3,3126.7,0.00310901]
[1763392624293,0.51855,3126.9,3126.7,0.00790517]
[1763392624482,3.2078,3127.0,3126.7,0.00790517]
[1763392624682,0.00479616,3127.1,3127.0,0.51853]
[1763392624886,0.00479616,3127.1,3126.7,40.80790517]
[1763392625100,0.00479616,3127.1,3126.7,0.00790517]
[1763392625392,0.00479616,3127.1,3126.9,0.51854]
[1763392625595,0.51856,3126.9,3126.7,0.00790517]
[1763392625891,0.00479616,3127.1,3126.7,0.00790517]
[1763392626189,3.2078,3127.8,3127.6,0.51841]
[1763392626384,0.51851,3127.2,3126.7,0.00790517]
[1763392626584,0.51855,3126.9,3126.7,0.00790517]
[1763392626793,3.72635,3126.9,3125.7,44.0078]
[1763392626987,0.51867,3126.2,3125.1,8.313]
[1763392627190,0.51872,3125.9,3125.2,3.2078]
[1763392627394,0.51877,3125.6,3124.5,3.2078]
[1763392627707,0.00395346,3125.6,3125.0,3.2078]
[1763392627993,0.51856,3126.9,3125.4,3.2078]
[1763392628297,3.2078,3125.9,3125.1,3.2078]
[1763392628485,3.2078,3125.5,3124.7,0.00479616]
[1763392628688,0.51887,3125.0,3124.7,0.00479616]
[1763392628887,0.00342995,3125.0,3124.7,0.00479616]
[1763392629782,3.2078,3125.8,3125.7,0.51874]
[1763392629992,0.00479616,3126.5,3126.2,0.51865]
[1763392630194,0.00479616,3126.5,3125.5,3.2078]
[1763392630502,0.51874,3125.7,3124.8,3.2078]
[1763392630687,0.00479616,3126.5,3125.2,3.2078]
[1763392630890,3.2078,3126.3,3125.2,3.2078]
[1763392631095,3.2078,3125.9,3125.2,3.2078]
[1763392631292,0.51875,3125.7,3125.2,3.2078]
[1763392631493,3.2078,3125.9,3125.2,3.2078]
[1763392631797,3.2078,3126.3,3126.0,0.51868]
[1763392631995,0.00803577,3126.5,3125.6,3.2078]
[1763392632292,3.2078,3126.2,3125.6,0.51875]
[1763392632497,3.72647,3126.2,3125.5,0.51876]
[1763392632693,3.72647,3126.2,3125.6,0.51875]
[1763392632888,3.2078,3125.8,3124.7,0.00479616]
[1763392633093,3.2078,3125.3,3125.0,0.51885]
[1763392633298,3.2078,3125.8,3124.8,0.51889]
[1763392633494,3.2078,3125.8,3125.6,0.51875]
[1763392633698,3.72647,3126.2,3125.6,0.51875]
[1763392633894,3.9287,3126.2,3125.9,0.51871]
[1763392634089,3.9287,3126.2,3126.0,0.51868]
[1763392634090,1.89571186,3126.2,3126.0,0.51868]
[1763392634291,0.00803577,3126.5,3126.4,0.51863]
[1763392634592,0.00803577,3126.5,3126.3,0.51863]
[1763392634799,0.00803577,3126.5,3125.6,3.2078]
[1763392635389,0.00803577,3126.5,3126.4,3.72643]
[1763392635593,3.2078,3127.6,3126.3,0.51864]
[1763392635802,3.2078,3127.2,3126.0,3.2078]
[1763392636099,0.51851,3127.1,3126.4,3.2078]
[1763392636403,3.2078,3127.2,3126.4,3.2078]
[1763392636698,3.72636,3126.8,3126.5,0.00479616]
[1763392636896,3.2078,3126.8,3126.5,0.00479616]
[1763392637100,0.51859,3126.7,3126.5,0.00479616]
[1763392637305,0.00479616,3127.1,3126.5,0.00479616]
[1763392637599,0.51858,3126.7,3126.5,0.00479616]
[1763392638600,3.2078,3126.8,3126.5,0.00479616]
[1763392638903,0.51858,3126.7,3126.5,0.00479616]
[1763392639301,3.2078,3126.8,3125.0,3.2078]
[1763392639498,3.8987,3126.2,3125.0,3.2078]
[1763392639704,3.2078,3126.3,3125.4,3.2078]
[1763392640002,0.00479616,3127.1,3125.9,0.5187]
[1763392640003,3.2078,3126.7,3125.9,0.5187]
[1763392640202,3.2078,3126.7,3125.4,3.2078]
[1763392640406,0.5186,3126.6,3125.9,0.5187]
[1763392640602,3.2078,3126.7,3126.4,0.51861]
[1763392640801,3.2078,3126.7,3125.8,3.2078]
[1763392640802,3.2078,3126.7,3126.5,0.51861]
[1763392641103,0.00479616,3127.1,3127.0,0.51853]
[1763392641403,0.00479616,3127.1,3127.0,0.52121488]
[1763392641612,0.00479616,3127.1,3127.0,0.00268488]
[1763392642499,0.00479616,3127.1,3126.4,3.72642]
[1763392642703,0.51859,3126.7,3126.4,3.2078]
[1763392643209,3.2078,3126.9,3126.4,3.2078]
[1763392643399,3.2078,3126.9,3126.7,0.51857]
[1763392644006,3.2078,3126.9,3126.4,3.21129054]
[1763392644007,0.00479616,3127.1,3127.0,0.51853]
[1763392644502,3.2078,3128.0,3127.9,0.51838]
[1763392644914,3.2078,3128.0,3127.6,0.51842]
[1763392645204,0.51838,3127.9,3127.4,3.2078]
[1763392645407,3.2078,3128.0,3127.4,3.47640128]
[1763392645598,3.21543043,3128.0,3127.4,0.00479616]
[1763392646005,0.00763043,3128.0,3127.7,3.2078]
[1763392646209,0.00763043,3128.0,3127.8,0.51839]
[1763392646502,0.51843,3127.6,3127.4,0.00479616]
[1763392646708,0.51861,3126.5,3125.9,0.5187]
[1763392646895,0.51861,3126.5,3125.8,3.2078]
[1763392647305,0.51861,3126.5,3125.4,3.48001343]
[1763392647508,6.0,3126.5,3124.5,3.2078]
[1763392647698,3.2078,3125.5,3125.2,0.00479616]
[1763392647902,0.5188,3125.4,3125.2,0.00479616]
[1763392648298,0.5188,3125.4,3124.2,40.8]
[1763392648604,0.5189,3124.8,3124.2,0.00410286]
[1763392648805,0.51895,3124.5,3124.2,0.00410286]
[1763392649306,0.00393415,3125.4,3124.2,0.00410286]
[1763392649499,0.00393415,3125.4,3124.5,3.2078]
[1763392649703,0.51888,3124.9,3124.4,3.2078]
[1763392649900,3.21173415,3125.4,3124.4,3.2078]
[1763392650206,3.21173415,3125.4,3124.2,0.00410286]
[1763392650405,3.21173415,3125.4,3124.4,3.2078]
[1763392650809,3.2078,3125.0,3124.4,3.2078]
[1763392651010,3.2078,3125.0,3124.7,0.51891]
[1763392651201,3.2078,3125.0,3124.4,3.2078]
[1763392651404,0.5189,3124.8,3124.6,0.51891]
[1763392651600,0.51896,3124.4,3124.2,0.00410286]
[1763392651809,0.51901,3124.1,3124.0,0.00479616]
[1763392652004,3.2078,3124.3,3122.1,1.11972712]
[1763392652005,0.51906,3123.8,3123.2,3.2078]
[1763392652307,3.2078,3124.3,3123.2,3.2078]
[1763392652507,3.2078,3124.7,3123.7,3.2078]
[1763392652806,0.51905,3123.9,3123.7,0.00228825]
[1763392652997,0.00479616,3124.1,3123.7,0.52135825]
[1763392653197,0.51905,3123.9,3123.7,0.00228825]
[1763392653509,3.2078,3123.9,3123.7,0.00228825]
[1763392653708,3.72684,3123.9,3123.7,0.00228825]
[1763392654101,3.2078,3123.9,3123.7,0.52135825]
[1763392654705,0.00479616,3124.1,3124.0,0.51903]
[1763392655310,0.51903,3124.0,3123.8,3.2078]
[1763392655513,0.00479616,3124.1,3123.9,0.51904]
[1763392655912,0.51903,3124.0,3123.8,3.2078]
[1763392656102,0.51904,3124.0,3123.8,3.2078]
[1763392656713,0.51903,3124.0,3123.8,3.2078]
[1763392657414,0.00479616,3124.1,3123.8,0.51906]
[1763392657610,0.51906,3123.8,3123.7,0.52134825]
[1763392657806,0.51906,3123.8,3123.7,0.00228825]
[1763392658204,0.51906,3123.9,3123.7,0.00228825]
[1763392658504,0.51905,3123.9,3123.7,0.00228825]
[1763392658910,0.6458,3124.0,3123.7,0.00228825]
[1763392659208,0.51905,3123.9,3123.7,0.00228825]
[1763392659712,0.51904,3123.9,3123.7,0.00228825]
[1763392660413,0.51905,3123.9,3123.7,0.00228825]
[1763392660916,3.2078,3124.0,3123.5,0.00479616]
[1763392661118,0.51908,3123.7,3123.5,0.00479616]
[1763392661310,0.00479616,3124.1,3123.9,0.51904]
[1763392661611,0.00479616,3124.1,3124.0,0.51903]
[1763392661817,0.00479616,3124.1,3124.0,0.52202593]
[1763392662008,0.52380616,3124.1,3124.0,0.00299593]
[1763392662509,0.00479616,3124.1,3124.0,3.72982593]
[1763392662906,0.00393415,3125.4,3124.0,53.52719593]
[1763392663110,0.51888,3125.0,3124.9,0.51888]
[1763392663318,3.2078,3125.3,3124.1,3.2078]
[1763392663510,0.51901,3124.1,3124.0,0.00299593]
[1763392663709,0.51909,3123.6,3123.5,6.16e-06]
[1763392663914,0.6458,3124.0,3122.4,3.2078]
[1763392663915,3.2078,3123.8,3122.4,3.2078]
[1763392664110,3.2078,3123.8,3121.0,0.3156]
[1763392664111,0.51936,3122.0,3121.9,3.2078]
[1763392664310,0.51934,3122.1,3121.9,3.2078]
[1763392664609,0.5218259,3122.1,3121.9,3.2116096]
[1763392664812,0.6458,3122.0,3121.5,3.2078]
[1763392665011,0.51942,3121.6,3121.5,3.2078]
[1763392665211,0.51942,3121.6,3121.4,0.004804]
[1763392665414,3.2078,3121.9,3121.4,0.004804]
[1763392665716,0.51944,3121.6,3121.4,0.004804]
[1763392665921,0.51957,3120.8,3120.6,3.2078]
[1763392666111,0.51957,3120.8,3120.6,3.21162853]
[1763392666308,3.26543617,3122.0,3119.0,0.6312]
[1763392666309,0.649,3120.7,3119.4,0.28797946]
[1763392666619,3.2078,3120.1,3119.2,0.51981]
[1763392666814,3.2078,3120.9,3119.8,3.2078]
[1763392667016,0.51977,3119.6,3119.1,3.2078]
[1763392667224,0.00409651,3119.6,3119.1,3.21166263]
[1763392667524,0.00409651,3119.6,3119.4,0.51978]
[1763392667713,0.51977,3119.5,3119.1,0.00386263]
[1763392667913,0.51982,3119.2,3119.1,0.00386263]
[1763392668119,0.52385651,3119.6,3119.1,0.00386263]
[1763392668324,0.51982,3119.3,3118.7,0.03206516]
[1763392668612,3.2078,3118.8,3116.9,3.2078]
[1763392668820,3.2078,3117.7,3117.2,0.52016]
[1763392669014,3.2078,3117.7,3116.7,0.38561486]
[1763392669015,3.2078,3117.7,3116.9,3.2078]
[1763392669210,0.004804,3118.2,3116.7,0.38561486]
[1763392669211,3.2078,3117.3,3116.7,0.61087158]
[1763392669411,3.21009919,3117.3,3117.0,0.63447736]
[1763392669611,3.21009919,3117.3,3117.1,0.52016]
[1763392670208,0.00229919,3117.3,3117.0,0.63447736]
[1763392670415,0.00229919,3117.3,3117.1,0.52017]
[1763392670715,0.00229919,3117.3,3117.0,0.63447736]
[1763392671017,3.21009919,3117.3,3117.0,0.63447736]
[1763392671218,2.6044129,3117.2,3116.3,0.6312]
[1763392671411,2.6044129,3117.2,3117.0,0.52019]
[1763392671612,3.21009919,3117.3,3116.3,3.839]
[1763392671807,3.21009919,3117.3,3117.1,0.52017]
[1763392672017,3.21009919,3117.3,3116.3,3.839]
[1763392672321,3.2078,3116.5,3115.9,1.4672]
[1763392672516,2.6044129,3117.2,3115.3,0.52046]
[1763392672517,3.2078,3116.0,3115.3,0.52046]
[1763392672714,3.2078,3116.0,3115.6,3.2078]
[1763392673022,3.2078,3116.4,3116.3,0.7027]
[1763392673228,3.2078,3117.2,3116.9,0.5202]
[1763392673420,3.2078,3117.2,3117.1,0.52017]
[1763392673616,3.2078,3118.1,3117.6,0.7027]
[1763392673818,3.2078,3118.1,3117.7,0.52007]
[1763392674014,3.2078,3118.1,3117.9,0.52003]
[1763392674627,0.52003,3118.0,3117.7,0.00481178]
[1763392674923,3.21085379,3118.1,3117.9,0.52003]
[1763392675324,3.21085379,3118.1,3118.0,6.0]
[1763392675516,3.2078,3118.7,3118.0,12.4142]
[1763392675722,3.2078,3118.7,3118.5,0.51993]
[1763392676018,3.2078,3118.7,3118.0,3.2078]
[1763392676629,3.21546121,3118.7,3118.0,3.21048221]
[1763392676827,3.73538121,3118.7,3118.0,3.21048221]
[1763392677123,3.2078,3118.3,3118.0,0.00268221]
[1763392677323,3.21546121,3118.7,3118.0,0.00268221]
[1763392677520,3.73538121,3118.7,3118.1,0.52]
[1763392677824,3.2078,3118.3,3118.0,0.00268221]
[1763392678027,3.2078,3118.3,3118.1,0.52]
[1763392678227,0.00766121,3118.7,3118.5,0.51993]
[1763392678527,3.72763,3119.2,3118.7,0.5199]
[1763392678728,3.2078,3119.2,3118.5,0.7027]
[1763392678929,0.51984,3119.1,3118.5,0.7027]
[1763392679134,0.51992,3118.6,3118.5,0.7027]
[1763392679425,0.00349005,3118.6,3118.0,0.00268221]
[1763392679616,3.2078,3118.1,3116.0,3.2078]
[1763392679817,3.2078,3117.0,3116.9,0.00481178]
[1763392680520,3.72799,3117.0,3116.9,0.00318259]
[1763392680725,3.2078,3117.0,3116.9,0.00318259]
[1763392681534,3.2078,3117.4,3116.9,0.00318259]
[1763392681825,0.00349005,3118.6,3118.5,0.7027]
[1763392682029,3.2078,3120.3,3119.6,0.7027]
[1763392682327,3.2078,3120.3,3119.7,0.51973]
[1763392682527,3.21261178,3120.3,3119.7,0.00481178]
[1763392682925,3.2078,3120.8,3119.8,44.0078]
[1763392683119,0.00346345,3120.8,3120.6,3.72739]
[1763392683325,3.2078,3121.8,3120.6,3.2078]
[1763392683529,3.2078,3121.8,3119.8,46.8032295]
[1763392683530,3.2078,3121.4,3121.2,0.7027]
[1763392683921,3.2078,3121.9,3121.3,0.51947]
[1763392684230,0.00481178,3121.6,3121.3,0.00481178]
[1763392684431,3.2078,3122.4,3121.9,0.51936]
[1763392684635,3.2078,3122.4,3121.4,0.51945]
[1763392684823,3.2078,3122.0,3121.3,0.00481178]
[1763392685017,3.2078,3121.5,3121.3,0.00481178]
[1763392685223,3.2078,3121.6,3121.3,0.00481178]
[1763392685425,3.2110244,3121.6,3119.9,3.2078]
[1763392685626,3.2078,3120.5,3119.8,40.8032295]
[1763392686025,3.2078,3121.1,3120.4,3.2078]
[1763392686334,0.0032244,3121.6,3120.8,3.2078]
[1763392686335,3.2078,3121.5,3120.8,3.2078]
[1763392686529,0.00480384,3121.5,3121.3,3.2078]
[1763392687039,0.51954,3120.9,3120.8,0.00480384]
[1763392687338,0.51961,3120.5,3120.4,3.2078]
[1763392687524,0.51964,3120.4,3120.0,3.2078]
[1763392687723,3.2078,3120.6,3119.8,0.0032295]
[1763392687925,3.2078,3121.0,3119.8,3.2110295]
[1763392688129,3.2078,3121.4,3120.3,3.2078]
[1763392688332,0.5196,3120.6,3119.9,3.7275]
[1763392688627,0.51965,3120.3,3119.9,3.21260384]
[1763392688831,3.2078,3121.1,3119.9,3.21260384]
[1763392689028,3.2078,3121.2,3120.4,3.2078]
[1763392689225,3.2078,3121.2,3120.3,3.2078]
[1763392689625,0.51954,3121.0,3120.6,0.51958]
[1763392689825,3.2078,3121.2,3120.0,3.2078]
[1763392690127,3.2078,3121.2,3120.4,3.2078]
[1763392690322,0.51956,3120.9,3120.0,3.2078]
[1763392690526,0.00480384,3121.5,3120.4,3.2078]
[1763392690730,0.00480384,3121.5,3121.3,0.51947]
[1763392690929,0.00480384,3121.5,3121.2,0.7027]
[1763392690930,0.0032244,3121.6,3121.4,0.51945]
[1763392691130,0.0032244,3121.6,3121.4,3.72725]
[1763392691327,0.0032244,3121.6,3121.2,0.7027]
[1763392691531,3.2110244,3121.6,3120.4,3.2078]
[1763392691729,3.72731,3121.1,3120.4,3.2078]
[1763392691929,0.00480384,3121.1,3120.9,3.2078]
[1763392692131,0.00480384,3121.1,3120.5,44.0078]
[1763392692438,0.0032244,3121.6,3121.2,0.7027]
[1763392692636,0.51947,3121.3,3121.2,0.7027]
[1763392692827,3.2078,3121.3,3120.5,40.8]
[1763392693028,0.51951,3121.1,3120.4,3.2078]
[1763392693229,3.2078,3121.3,3120.4,3.2078]
[1763392693437,0.00480384,3121.2,3120.4,3.2078]
[1763392693627,0.0032244,3121.6,3120.8,3.2078]
[1763392693831,0.0032244,3121.6,3121.4,0.51945]
[1763392694235,0.0032244,3121.6,3121.3,3.2078]
[1763392694533,0.0032244,3121.6,3121.4,0.51945]
[1763392694739,0.0032244,3121.6,3121.3,3.2078]
[1763392695040,0.0032244,3121.6,3121.4,0.51945]
[1763392695539,0.0032244,3121.6,3121.3,3.2078]
[1763392695733,2.44e-05,3121.6,3121.4,0.51945]
[1763392695942,3.2078,3122.6,3121.9,0.51936]
[1763392696130,3.2078,3123.2,3122.2,3.2078]
[1763392696328,3.2078,3122.4,3121.8,3.9105]
[1763392696537,3.2078,3122.0,3121.4,3.2078]
[1763392696833,0.00406246,3122.0,3121.4,3.21528468]
[1763392697040,3.2078,3121.7,3121.4,0.00748468]
[1763392697331,0.51943,3121.6,3121.4,0.00748468]
[1763392698125,3.2078,3121.7,3120.1,44.0078]
[1763392698330,0.00406246,3122.0,3120.1,3.2078]
[1763392698331,0.51959,3120.7,3120.1,3.2078]
[1763392698532,3.2078,3121.0,3120.1,3.2078]
[1763392698734,3.2078,3120.5,3120.1,3.72747]
[1763392698929,0.51964,3120.3,3120.1,3.2078]
[1763392699136,0.51966,3120.2,3120.1,3.21019662]
[1763392699542,0.52441384,3120.5,3120.1,3.21019662]
[1763392700038,0.51966,3120.2,3120.1,0.00239662]
[1763392700234,3.21260384,3120.5,3120.1,0.00239662]
[1763392700438,3.21260384,3120.5,3120.2,0.51966]
[1763392700634,0.51966,3120.2,3120.1,0.52206662]
[1763392700836,3.21260384,3120.5,3120.1,0.00239662]
[1763392701746,0.51966,3120.2,3120.1,0.00239662]
[1763392702134,3.73221384,3120.5,3120.1,0.00239662]
[1763392702435,0.00480384,3120.5,3120.4,3.72742]
[1763392702644,3.84e-06,3120.5,3120.4,3.72742]
[1763392702940,3.2078,3121.1,3120.9,0.51954]
[1763392703136,3.2078,3121.1,3121.0,0.51952]
[1763392703536,3.2078,3121.7,3121.2,0.51948]
[1763392703738,3.2078,3121.7,3120.8,3.2078]
[1763392703936,0.5195,3121.2,3120.7,0.7006]
[1763392704241,0.51954,3120.9,3120.7,0.7006]
[1763392704548,3.2078,3121.7,3120.8,3.2078]
[1763392704837,3.2078,3122.3,3122.2,0.51932]
[1763392705040,1.03454987,3122.8,3122.2,3.2078]
[1763392705242,15.36946377,3123.3,3122.6,3.2078]
[1763392705543,0.51923,3122.8,3122.2,3.2078]
[1763392706044,0.0027131,3122.8,3122.7,0.51924]
[1763392706349,1.69131954,3123.3,3123.1,0.51918]
[1763392706535,0.0346,3123.7,3123.6,0.51909]
[1763392706736,1.69131954,3123.9,3123.8,0.51906]
[1763392706943,1.69131954,3124.0,3123.8,41.31906]
[1763392707237,2.843973,3124.6,3123.8,44.0008]
[1763392707238,2.28840347,3124.6,3123.8,44.0008]
[1763392707445,2.25793546,3124.6,3124.4,0.51896]
[1763392707639,0.00326096,3124.6,3124.5,0.51893]
[1763392707945,3.72999096,3124.6,3124.4,0.00293715]
[1763392708143,0.00326096,3124.6,3124.4,0.00293715]
[1763392708337,3.2078,3124.5,3124.4,0.00293715]
[1763392708540,9.2078,3124.5,3123.5,0.00480384]
[1763392708741,0.51903,3124.0,3123.6,3.2078]
[1763392708938,3.2078,3124.5,3123.6,3.2078]
[1763392708939,0.51908,3123.7,3123.6,3.2078]
[1763392709246,0.51902,3124.1,3123.6,3.2078]
[1763392709443,0.51903,3124.0,3123.6,3.21196265]
[1763392709640,0.00326096,3124.6,3123.8,0.51905]
[1763392709844,0.00326096,3124.6,3123.6,0.00416265]
[1763392710151,0.51906,3123.8,3123.6,0.00416265]
[1763392711340,0.51941,3121.7,3121.6,0.39172712]
[1763392711538,0.51941,3121.7,3120.7,3.571107]
[1763392711539,0.51956,3120.8,3120.7,0.7006]
[1763392711841,3.2078,3120.8,3119.8,0.29055868]
[1763392712037,3.2078,3120.4,3119.6,0.7027]
[1763392712344,3.2078,3119.7,3119.6,0.70627969]
[1763392712648,3.2078,3119.7,3119.6,1.22603969]
[1763392712946,3.2078,3120.2,3119.6,0.70627969]
[1763392713255,3.2078,3119.8,3119.6,0.70627969]
[1763392713439,3.72753,3119.8,3119.6,0.70627969]
[1763392713744,3.2078,3119.8,3119.6,1.22602969]
[1763392714046,3.2078,3119.8,3119.7,0.51974]
[1763392714242,3.21260384,3120.3,3120.2,0.51966]
[1763392714441,3.21260384,3120.3,3119.8,0.51972]
[1763392714640,3.2078,3119.9,3119.7,0.51973]
[1763392714946,3.21260384,3120.3,3120.1,0.51967]
[1763392715248,3.2078,3121.7,3121.2,0.7006]
[1763392715444,3.2078,3122.4,3121.4,3.2078]
[1763392715848,0.51933,3122.2,3121.5,0.51944]
[1763392716149,3.72717,3122.0,3121.5,0.00480384]
[1763392716648,3.2078,3121.6,3121.5,0.00480384]
[1763392717150,0.51974,3119.8,3119.6,0.70627969]
[1763392717340,0.51974,3119.8,3119.2,3.2078]
[1763392717341,0.51981,3119.3,3119.2,3.2078]
[1763392717541,0.51981,3119.3,3118.8,40.8]
[1763392717542,0.51978,3119.5,3118.8,3.2078]
[1763392717845,0.51985,3119.1,3118.5,1.22053]
[1763392718048,0.51989,3118.8,3118.6,0.00480384]
[1763392718354,3.72769,3118.8,3118.7,0.03431731]
[1763392718547,9.72769,3118.8,3118.7,0.03431731]
[1763392718740,0.52003,3118.0,3117.6,0.7006]
[1763392718938,0.52006,3117.8,3117.6,0.7006]
[1763392719144,0.52003,3118.0,3117.6,0.7006]
[1763392719471,3.2078,3117.7,3116.0,3.4965182]
[1763392719749,2.6044129,3119.1,3115.2,3.571107]
[1763392719750,3.2078,3117.1,3116.4,0.70435731]
[1763392719947,3.21024385,3117.1,3116.7,0.00481186]
[1763392720145,0.52022,3116.9,3116.7,0.00481186]
[1763392720347,3.21024385,3117.1,3116.7,0.00481186]
[1763392720544,3.21024385,3117.1,3116.9,0.5202]
[1763392720739,3.21024385,3117.1,3116.7,0.00481186]
[1763392720944,3.21024385,3117.1,3116.7,0.52504186]
[1763392721144,3.21024385,3117.1,3116.9,0.52019]
[1763392721542,2.26,3119.1,3117.7,0.52007]
[1763392721543,3.2078,3117.8,3117.7,0.52007]
[1763392721744,3.2078,3118.2,3118.0,0.52001]
[1763392721950,3.2078,3118.2,3117.6,3.2078]
[1763392722150,3.2078,3118.2,3117.9,0.52003]
[1763392722354,3.2078,3118.2,3118.0,0.52001]
[1763392722856,0.00335435,3118.2,3118.0,0.52001]
[1763392723047,0.00481186,3118.4,3118.3,0.51997]
[1763392723349,0.00481186,3118.4,3117.8,40.80481186]
[1763392723550,3.2078,3118.2,3117.8,0.00481186]
[1763392724049,0.52003,3118.0,3117.8,0.00481186]
[1763392724240,0.52012,3117.5,3117.0,3.2078]
[1763392724444,0.52008,3117.7,3117.0,3.2078]
[1763392724641,3.72787,3117.8,3117.4,0.52012]
[1763392724854,3.2078,3117.8,3116.6,40.8]
[1763392725146,3.2078,3117.4,3116.9,0.00481186]
[1763392725346,3.2078,3117.0,3116.9,0.00481186]
[1763392725549,3.2078,3117.0,3116.9,1.186e-05]
[1763392726351,11.8122129,3117.0,3116.9,1.186e-05]
[1763392726554,3.2078,3117.0,3116.9,1.186e-05]
[1763392726854,0.52018,3117.1,3116.9,1.186e-05]
[1763392727055,3.2078,3117.0,3116.9,1.186e-05]
[1763392727555,3.72799,3117.0,3116.9,1.186e-05]
[1763392728257,9.72799,3117.0,3116.9,1.186e-05]
[1763392728446,3.2078,3117.0,3116.9,1.186e-05]
[1763392729050,9.2078,3117.0,3116.9,1.186e-05]
[1763392729555,5.8122129,3117.0,3115.2,3.2078]
[1763392729857,0.52029,3116.5,3115.6,3.2078]
[1763392730051,3.2078,3116.8,3116.6,0.52025]
[1763392730250,0.5203,3116.4,3116.0,3.2078]
[1763392730445,3.2078,3116.8,3116.6,0.52025]
[1763392730645,0.00481186,3116.5,3116.0,0.00314022]
[1763392730851,0.52031,3116.3,3116.0,0.52348022]
[1763392731051,0.00481186,3116.5,3116.2,0.52032]
[1763392731249,0.00481186,3116.5,3116.3,0.52029]
[1763392731456,3.2078,3117.2,3116.3,0.8908]
[1763392731754,0.52021,3116.9,3116.3,0.8908]
[1763392731954,0.52024,3116.7,3116.2,3.2078]
[1763392732156,3.2078,3117.4,3116.6,3.2078]
[1763392732458,0.00481186,3117.3,3117.2,0.52016]
[1763392732755,3.2078,3117.8,3117.7,0.52007]
[1763392732956,0.00401331,3118.2,3117.8,0.52005]
[1763392733248,0.52008,3117.7,3117.1,3.2078]
[1763392733455,0.52013,3117.4,3117.1,3.2078]
[1763392733658,3.2078,3117.5,3117.1,40.8]
[1763392733843,3.2078,3117.5,3117.4,0.52012]
[1763392734045,3.2078,3117.9,3117.4,4.098]
[1763392734250,3.2078,3118.4,3118.1,0.51999]
[1763392734557,3.72776,3118.4,3117.6,3.2078]
[1763392734852,3.2078,3118.4,3118.2,0.51998]
[1763392735249,0.00361758,3118.4,3118.2,0.52358025]
[1763392735649,0.00361758,3118.4,3118.2,0.52359025]
[1763392735845,3.2078,3119.2,3119.0,0.51985]
[1763392736250,0.51978,3119.5,3119.2,0.51982]
[1763392736447,11.554,3121.0,3119.0,0.00481186]
[1763392736448,0.51984,3119.2,3119.0,0.00481186]
[1763392736848,0.52246805,3119.2,3119.0,0.00481186]
[1763392739358,0.51997,3118.3,3118.2,0.00360025]
[1763392739655,3.72777,3118.3,3118.2,0.00360025]
[1763392740050,3.2078,3118.3,3118.2,0.00360025]
[1763392740253,3.72777,3118.3,3118.2,0.00360025]
[1763392740451,3.2078,3118.3,3117.1,3.2078]
[1763392740654,0.52029,3116.4,3116.3,3.2078]
[1763392740851,0.52036,3116.0,3115.7,3.2078]
[1763392741054,0.52038,3115.9,3115.7,3.2078]
[1763392741254,0.52038,3115.9,3114.1,4.0986]
[1763392741255,3.2078,3115.9,3114.1,4.0986]
[1763392741457,0.52065,3114.3,3114.1,3.21038812]
[1763392741649,0.52065,3114.3,3114.1,0.00258812]
[1763392742050,0.52069,3114.0,3113.9,0.00481186]
[1763392742251,3.2078,3114.0,3113.9,0.00481186]
[1763392742457,3.2078,3114.0,3113.9,1.186e-05]
[1763392742654,3.2078,3113.6,3112.0,0.8908]
[1763392742857,3.2078,3112.6,3110.9,3.2078]
[1763392743059,3.2078,3111.7,3110.9,0.00357171]
[1763392743560,3.2078,3111.3,3110.5,3.2078]
[1763392743757,3.2078,3111.3,3111.0,0.00481974]
[1763392744057,3.2078,3111.3,3110.2,0.09064158]
[1763392744258,0.00481974,3111.6,3110.5,3.2078]
[1763392744464,0.00481974,3111.6,3111.1,3.2078]
[1763392744672,0.00250864,3112.6,3111.6,0.8908]
[1763392744856,3.2078,3113.1,3111.9,3.2078]
[1763392745161,2.07211285,3114.1,3112.8,0.8908]
[1763392745162,4.44821285,3114.1,3112.8,0.8908]
[1763392745468,0.8317,3112.8,3110.8,3.2078]
[1763392745766,3.2078,3112.0,3110.8,0.00312998]
[1763392746060,3.2078,3111.1,3110.8,0.00312998]
[1763392746255,3.2078,3111.9,3110.8,0.00312998]
[1763392746453,3.2078,3111.9,3111.1,3.2078]
[1763392746652,0.00481974,3112.1,3111.7,3.72887]
[1763392746856,0.52113,3111.4,3111.3,3.2078]
[1763392747053,0.52116,3111.3,3111.0,0.00481974]
[1763392747360,3.2078,3111.6,3111.0,0.00481974]